bitfinex/quotes_ETHUSD_20250217
["timestamp","ask_amount","ask_price","bid_price","bid_amount"]
[1739811849997,4.48892,2735.3,2735.1,0.04665362]
[1739811850222,4.48892,2735.3,2735.0,0.04678037]
[1739811850552,3.65616,2735.2,2734.6,6.65673]
[1739811850728,0.833,2735.3,2734.5,0.37045111]
[1739811850729,3.6565,2734.9,2734.5,0.37045111]
[1739811851023,8.32630914,2735.3,2734.5,0.37045111]
[1739811851024,3.65631,2735.0,2734.5,3.6569]
[1739811851232,3.65631,2735.0,2734.3,3.0]
[1739811851233,3.6566,2734.8,2734.3,3.65716]
[1739811851545,3.65638,2735.0,2734.3,3.0]
[1739811851849,3.65664,2734.8,2734.3,6.65724]
[1739811852349,3.6569,2734.6,2734.2,0.11175482]
[1739811852485,4.48533,2734.8,2734.2,0.11175482]
[1739811852796,3.65682,2734.7,2734.3,3.0]
[1739811853202,3.65682,2734.7,2734.3,4.04263848]
[1739811853387,4.48533,2734.8,2734.3,4.69985848]
[1739811853592,0.8287,2734.8,2734.3,1.04263848]
[1739811853794,3.65698,2734.5,2734.3,3.0]
[1739811854406,3.65685,2734.6,2734.2,3.11175482]
[1739811855017,3.65678,2734.7,2734.2,6.76911482]
[1739811855217,4.4853,2734.8,2734.3,3.65714]
[1739811855436,3.65697,2734.5,2734.4,1.04262548]
[1739811855656,3.65697,2734.5,2734.2,3.11175482]
[1739811855853,3.65703,2734.5,2734.2,0.11175482]
[1739811856032,3.65684,2734.6,2734.2,0.11175482]
[1739811856245,3.65705,2734.5,2734.2,0.11175482]
[1739811856465,3.65718,2734.4,2734.2,0.11175482]
[1739811856604,3.65705,2734.5,2734.2,0.11175482]
[1739811856605,3.65724,2734.3,2734.2,0.11175482]
[1739811856800,3.65711,2734.4,2734.2,0.11175482]
[1739811857153,3.65724,2734.3,2734.2,0.11175482]
[1739811857303,7.31432,2734.4,2734.2,0.11175482]
[1739811857940,7.31433,2734.4,2734.3,0.04788525]
[1739811858143,0.8287,2734.8,2734.2,0.11175482]
[1739811858337,3.65704,2734.5,2734.3,0.04788525]
[1739811858504,3.65679,2734.7,2734.2,3.76911482]
[1739811858705,7.31359,2734.7,2734.3,0.04788525]
[1739811858906,7.31361,2734.7,2734.2,3.76911482]
[1739811859108,3.65684,2734.6,2734.3,0.04788525]
[1739811859327,3.65678,2734.7,2734.2,3.76911482]
[1739811859506,3.6571,2734.4,2734.3,0.04788525]
[1739811859838,4.48534,2734.8,2734.2,0.11175482]
[1739811860057,0.8287,2734.8,2734.5,3.65688]
[1739811860265,0.7895,2735.1,2735.0,3.6563]
[1739811860425,3.65593,2735.3,2734.8,3.6565]
[1739811860757,3.65593,2735.3,2734.9,3.70355449]
[1739811860906,3.65593,2735.3,2734.9,0.04712449]
[1739811861104,0.7895,2735.1,2734.3,4.44157]
[1739811861307,4.46832,2734.7,2734.4,0.04775843]
[1739811861622,3.65719,2734.4,2733.9,3.65775]
[1739811861820,7.31416,2734.5,2733.9,3.65769]
[1739811862022,7.31416,2734.5,2733.7,0.8307]
[1739811862023,3.65707,2734.5,2734.3,0.04788525]
[1739811862208,3.65707,2734.5,2734.0,3.65756]
[1739811862405,3.6571,2734.4,2733.8,3.65782]
[1739811862603,3.6571,2734.4,2733.7,0.8307]
[1739811862604,5.41212915,2734.4,2734.3,0.04788525]
[1739811863051,5.41212915,2734.4,2733.6,3.65808]
[1739811863052,3.65724,2734.3,2733.7,3.0]
[1739811863252,3.65724,2734.3,2733.7,6.65795]
[1739811863561,3.65724,2734.3,2734.2,0.15976689]
[1739811864126,3.70295932,2734.3,2734.2,0.15976689]
[1739811864456,3.65724,2734.3,2734.2,0.15976689]
[1739811866530,3.65724,2734.3,2734.2,0.11175482]
[1739811866734,3.65724,2734.3,2734.2,0.15976689]
[1739811867657,3.65724,2734.3,2734.2,0.11175482]
[1739811867842,3.65724,2734.3,2734.2,0.15976689]
[1739811868731,4.46872,2734.4,2734.2,0.15976689]
[1739811868955,5.447632,2734.4,2734.2,0.11175482]
[1739811869153,4.46876,2734.4,2734.3,0.04437673]
[1739811869466,3.65724,2734.3,2734.2,0.11175482]
[1739811869666,4.46871,2734.4,2734.2,0.11175482]
[1739811869827,0.8116,2734.4,2734.2,0.11175482]
[1739811870033,3.65724,2734.3,2734.2,0.11175482]
[1739811870754,5.32,2734.6,2734.5,3.65697]
[1739811870956,5.32,2735.0,2734.5,0.365697]
[1739811871142,3.65597,2735.3,2734.7,3.65662]
[1739811871335,3.65597,2735.3,2734.6,3.65684]
[1739811871536,3.65597,2735.3,2734.7,3.6566]
[1739811871765,0.7591,2735.4,2734.9,3.65642]
[1739811871978,4.41497,2735.4,2734.7,3.65669]
[1739811872154,3.65601,2735.3,2734.7,3.65669]
[1739811872359,0.7591,2735.4,2734.5,4.022567]
[1739811872560,3.65645,2734.9,2734.5,4.022567]
[1739811872731,3.65645,2734.9,2734.6,0.4821867]
[1739811872936,3.65645,2734.9,2734.6,0.52990499]
[1739811873443,8.0721,2734.9,2734.6,0.52990499]
[1739811873661,4.41554,2734.9,2734.6,0.04771829]
[1739811873863,0.7591,2735.2,2734.2,0.91105482]
[1739811874063,4.4152,2735.2,2734.6,3.65676]
[1739811874257,0.7591,2735.2,2734.6,3.65675]
[1739811874440,0.7591,2735.2,2734.8,3.65655]
[1739811874643,3.6564,2735.0,2734.9,0.04738932]
[1739811874832,8.07137,2735.2,2734.5,3.0]
[1739811875040,4.41523,2735.2,2734.6,3.70453176]
[1739811875359,4.41523,2735.2,2734.7,3.65663]
[1739811875575,4.41522,2735.2,2734.7,1.08375115]
[1739811875793,4.41522,2735.2,2734.7,0.04763497]
[1739811875794,3.65617,2735.1,2734.7,0.04763497]
[1739811876161,3.65617,2735.1,2734.6,3.65681]
[1739811876381,3.65617,2735.1,2734.8,0.04750819]
[1739811876543,4.41522,2735.2,2734.7,0.04763497]
[1739811876740,3.65617,2735.1,2734.5,3.0]
[1739811876992,0.7591,2735.2,2734.8,3.70400819]
[1739811877194,4.41517,2735.2,2734.7,3.65659]
[1739811877399,4.41517,2735.2,2734.6,0.665698]
[1739811877400,4.41517,2735.2,2734.9,0.04738142]
[1739811877560,0.7591,2735.2,2734.8,0.04750819]
[1739811877898,0.04570795,2735.1,2734.4,3.6571]
[1739811878065,4.2063,2735.0,2734.9,0.04738142]
[1739811878401,3.65701,2734.5,2734.2,0.11175482]
[1739811878761,3.65701,2734.5,2734.3,0.04813032]
[1739811878964,5.32,2734.9,2734.4,3.65708]
[1739811879303,0.7551,2735.3,2734.4,0.8174035]
[1739811879449,4.41108,2735.3,2734.7,3.6567]
[1739811879649,3.65612,2735.2,2734.8,0.04739746]
[1739811880066,3.65617,2735.1,2734.8,0.04739746]
[1739811880268,0.7551,2735.3,2734.8,0.04739746]
[1739811880561,0.7551,2735.3,2734.9,3.65638]
[1739811880762,3.65605,2735.2,2734.9,0.04727069]
[1739811881001,4.4111,2735.3,2734.9,3.65643]
[1739811881221,4.4111,2735.3,2735.0,0.04714393]
[1739811881567,3.65588,2735.4,2735.0,0.04714393]
[1739811881908,3.65577,2735.4,2735.0,0.04714393]
[1739811882112,0.7649,2735.5,2735.0,0.73601139]
[1739811882319,4.42055,2735.5,2735.1,0.04701718]
[1739811882468,0.7649,2735.5,2735.1,0.04701718]
[1739811882665,0.7649,2735.5,2734.9,0.8329]
[1739811882935,0.7649,2735.5,2735.0,0.04714393]
[1739811883274,0.7649,2735.5,2734.9,0.8329]
[1739811883506,3.65578,2735.4,2734.9,4.48925]
[1739811883700,4.42061,2735.5,2735.0,4.51790593]
[1739811884216,4.42057,2735.5,2735.0,0.86171593]
[1739811884500,3.65584,2735.4,2735.0,0.86171593]
[1739811885094,4.4206,2735.5,2735.0,4.51798593]
[1739811885467,0.7649,2735.5,2735.0,0.86171593]
[1739811885668,3.65595,2735.3,2735.0,0.86171593]
[1739811886698,3.65585,2735.4,2735.0,0.86171593]
[1739811886901,3.65594,2735.3,2735.0,0.86171593]
[1739811887691,3.65586,2735.4,2735.0,0.04714393]
[1739811887870,0.7649,2735.5,2734.8,3.65647]
[1739811888069,4.42063,2735.5,2734.9,3.70360069]
[1739811888509,0.7649,2735.5,2735.0,3.65623]
[1739811888683,3.65558,2735.6,2735.1,3.65614]
[1739811888883,3.65565,2735.5,2735.2,0.04689044]
[1739811889084,3.65579,2735.4,2735.2,0.04689044]
[1739811889308,7.31165,2735.4,2735.2,0.04689044]
[1739811889880,3.6559,2735.3,2735.2,0.04689044]
[1739811890467,3.65644,2734.9,2734.6,0.8078]
[1739811890671,3.65644,2734.9,2734.6,1.254277]
[1739811891161,3.65644,2734.9,2734.6,0.8078]
[1739811891287,3.65644,2734.9,2734.5,3.0]
[1739811892328,3.65652,2734.9,2734.5,3.0]
[1739811892616,3.65643,2735.0,2734.5,3.0]
[1739811892823,3.65657,2734.8,2734.5,3.0]
[1739811893115,3.65643,2735.0,2734.5,3.0]
[1739811893298,3.65653,2734.9,2734.5,3.745953]
[1739811893503,3.65666,2734.8,2734.5,0.745953]
[1739811893819,3.65672,2734.7,2734.5,0.745953]
[1739811894005,7.31309,2734.9,2734.5,0.745953]
[1739811894205,3.65659,2734.8,2734.5,0.745953]
[1739811894517,3.65657,2734.8,2734.5,0.745953]
[1739811894942,3.65657,2734.8,2734.3,4.45972]
[1739811894943,0.04571032,2735.0,2734.3,0.8025]
[1739811895217,3.65693,2734.6,2734.2,6.76911482]
[1739811895376,3.65693,2734.6,2734.2,0.11175482]
[1739811895722,7.31387,2734.6,2734.2,0.11175482]
[1739811895927,3.65697,2734.5,2734.2,0.11175482]
[1739811896106,0.04571483,2734.6,2734.2,0.11175482]
[1739811896307,0.8014,2734.7,2734.2,3.76906482]
[1739811896308,4.45812,2734.7,2734.2,3.76906482]
[1739811896608,8.11494,2734.7,2734.2,3.76906482]
[1739811896811,4.45812,2734.7,2734.2,3.76906482]
[1739811897127,0.8014,2734.7,2734.4,3.65707]
[1739811897304,0.8014,2734.7,2734.2,4.5905043]
[1739811897469,3.65664,2734.8,2734.3,3.65724]
[1739811897671,5.32,2734.9,2734.3,3.65724]
[1739811897672,5.32,2734.9,2734.8,3.65657]
[1739811898212,5.32,2734.9,2734.8,4.43107]
[1739811898506,5.32,2734.9,2734.8,5.239846]
[1739811899796,5.32,2734.9,2734.8,1.583276]
[1739811900308,3.6561,2735.2,2734.8,1.583276]
[1739811900473,3.6563,2735.0,2734.5,0.7565]
[1739811900668,3.65667,2734.8,2734.3,4.41363]
[1739811900910,0.753,2735.1,2734.6,3.65675]
[1739811900911,4.40926,2735.1,2734.6,3.65675]
[1739811901106,0.753,2735.4,2734.6,0.73137]
[1739811901412,3.65591,2735.3,2734.8,4.41304]
[1739811901613,3.65591,2735.3,2734.8,4.41301]
[1739811901913,0.753,2735.4,2734.8,0.7565]
[1739811902102,3.65571,2735.5,2734.8,4.41307]
[1739811902315,3.65571,2735.5,2735.0,3.65622]
[1739811902611,3.65571,2735.5,2735.0,4.463145]
[1739811902913,5.32,2735.9,2735.0,4.463145]
[1739811902914,5.32,2735.9,2735.1,0.7565]
[1739811903212,5.32,2736.2,2736.0,3.65489]
[1739811903409,5.32,2736.2,2735.8,3.65519]
[1739811903410,3.65444,2736.4,2735.9,3.65508]
[1739811903574,3.65444,2736.4,2736.1,0.04498258]
[1739811903769,3.65444,2736.4,2735.9,0.7761]
[1739811903973,3.65457,2736.3,2736.2,0.04934152]
[1739811904211,1.339651,2736.3,2735.3,3.7672]
[1739811904508,3.65531,2735.8,2735.3,0.7672]
[1739811904810,3.65542,2735.7,2735.3,0.7672]
[1739811905314,3.655,2736.0,2735.4,3.65564]
[1739811905607,5.32,2736.3,2735.8,3.6551]
[1739811905809,8.97444,2736.4,2735.8,3.65516]
[1739811905982,0.8235,2736.5,2735.8,0.365516]
[1739811906168,3.65411,2736.7,2736.1,4.41224]
[1739811906373,3.65424,2736.6,2736.1,0.7575]
[1739811906869,4.47746,2736.8,2736.2,3.65459]
[1739811907095,0.8235,2736.8,2736.2,3.65459]
[1739811907494,3.65387,2736.9,2736.2,4.095829]
[1739811907699,3.65385,2736.9,2736.2,4.095829]
[1739811907900,3.65384,2736.9,2736.3,3.65448]
[1739811908099,4.47704,2737.1,2736.2,0.441209]
[1739811908422,0.7805,2737.4,2736.6,3.766]
[1739811908621,4.43367,2737.4,2736.7,3.65403]
[1739811908820,3.65335,2737.3,2736.7,3.65403]
[1739811909028,3.65335,2737.3,2736.8,3.65385]
[1739811909227,3.65406,2736.7,2736.3,0.7583]
[1739811909428,4.43363,2737.4,2736.7,3.65395]
[1739811909728,4.43363,2737.4,2736.9,4.41197]
[1739811909979,3.65293,2737.6,2737.1,3.65342]
[1739811910135,0.8305,2737.7,2737.0,3.0]
[1739811910312,0.8305,2737.7,2737.2,3.65327]
[1739811910496,3.65244,2737.9,2737.2,3.65327]
[1739811910832,3.65291,2737.6,2737.0,6.65357]
[1739811911034,3.65291,2737.6,2737.1,3.65349]
[1739811911344,3.65261,2737.8,2737.1,3.65349]
[1739811911531,0.73382678,2738.0,2737.0,3.0]
[1739811911822,0.73382678,2738.0,2736.9,0.7583]
[1739811911823,3.65346,2737.2,2736.9,0.7583]
[1739811912122,3.65368,2737.0,2736.5,0.8009]
[1739811912329,4.42534,2737.2,2736.5,4.45515]
[1739811912528,0.7719,2737.2,2736.5,0.8009]
[1739811912728,0.7719,2737.2,2736.6,0.06887273]
[1739811912729,3.65405,2736.7,2736.6,0.06887273]
[1739811913233,3.65444,2736.4,2735.9,4.45591]
[1739811913529,3.6542,2736.6,2736.0,3.4821426]
[1739811913732,3.65453,2736.4,2736.0,0.55081318]
[1739811913942,4.40068561,2736.9,2736.0,0.06867058]
[1739811914257,0.7719,2737.0,2736.0,0.06867058]
[1739811914432,3.65384,2736.9,2736.3,3.6545]
[1739811914631,0.7719,2737.0,2736.0,3.06867058]
[1739811914836,4.42556,2737.0,2736.1,3.65482]
[1739811915004,3.65424,2736.6,2736.1,3.7147326]
[1739811915307,0.7719,2737.0,2736.1,0.0599126]
[1739811915507,3.6547,2736.2,2736.1,0.0599126]
[1739811915707,3.65487,2736.1,2735.9,0.8009]
[1739811915937,3.65504,2736.0,2735.5,0.8009]
[1739811916128,3.65504,2736.0,2735.6,3.445655]
[1739811916435,3.65504,2736.0,2735.6,0.445655]
[1739811916642,3.65537,2735.7,2735.1,0.8009]
[1739811917011,3.65537,2735.7,2735.1,4.45698]
[1739811917225,0.7719,2736.2,2735.7,3.65537]
[1739811917541,3.65472,2736.2,2735.7,4.45627]
[1739811917712,7.3095,2736.2,2735.7,5.267454]
[1739811918038,3.65472,2736.2,2735.8,0.0604351]
[1739811918438,3.65472,2736.2,2735.7,5.267444]
[1739811918740,3.6551,2735.9,2735.8,0.0604351]
[1739811918901,3.65571,2735.5,2735.0,0.806925]
[1739811919107,3.6558,2735.4,2735.1,0.86255473]
[1739811919308,3.65553,2735.6,2735.1,4.51863473]
[1739811919517,3.65553,2735.6,2735.1,0.86255473]
[1739811919840,3.65586,2735.4,2735.1,0.86255473]
[1739811920142,0.7719,2736.0,2735.1,0.06165473]
[1739811920306,3.65546,2735.7,2735.1,3.71779473]
[1739811920637,3.65546,2735.7,2735.2,0.06148046]
[1739811920844,0.7719,2736.0,2735.2,3.06148046]
[1739811921013,5.32,2736.2,2736.0,3.65488]
[1739811921217,3.65437,2736.5,2736.1,0.0603904]
[1739811921438,12.6284,2736.6,2736.1,0.0603904]
[1739811921739,8.97416,2736.6,2736.1,0.0603904]
[1739811922041,8.97429,2736.6,2736.1,0.0603904]
[1739811922208,3.6544,2736.5,2736.1,0.0603904]
[1739811922538,3.6545,2736.4,2736.1,0.0603904]
[1739811922925,3.6545,2736.4,2735.9,4.45591]
[1739811923144,3.65457,2736.3,2736.2,0.06027573]
[1739811923317,3.65512,2735.9,2735.6,0.8197]
[1739811923513,3.65513,2735.9,2735.6,0.8197]
[1739811923720,3.65523,2735.8,2735.7,0.06114657]
[1739811924229,3.65517,2735.9,2735.7,0.06114657]
[1739811924405,3.65505,2736.0,2735.7,0.06114657]
[1739811924601,3.65517,2735.9,2735.7,0.06114657]
[1739811924832,3.65523,2735.8,2735.7,0.06114657]
[1739811925623,3.65473,2736.2,2735.3,0.7538]
[1739811925824,3.65512,2735.9,2735.4,0.06166923]
[1739811926149,3.65552,2735.6,2735.4,0.06166923]
[1739811926647,3.65563,2735.5,2735.4,0.06166923]
[1739811927031,3.70132669,2735.5,2735.4,0.06166923]
[1739811927236,3.65606,2735.2,2734.7,4.41042]
[1739811927431,3.65606,2735.2,2734.7,5.217152]
[1739811927626,3.65606,2735.2,2734.8,0.06271488]
[1739811928052,3.65639,2735.0,2734.8,0.06271488]
[1739811928226,3.65619,2735.1,2734.8,0.09570734]
[1739811928543,3.65644,2734.9,2734.8,0.09570734]
[1739811928764,3.65637,2735.0,2734.8,0.09570734]
[1739811929124,3.65617,2735.2,2734.8,0.09570734]
[1739811929345,3.65624,2735.1,2734.8,0.09570734]
[1739811929523,3.65639,2735.0,2734.8,0.09570734]
[1739811929717,3.65644,2734.9,2734.8,0.09570734]
[1739811930356,3.65639,2735.0,2734.5,3.65687]
[1739811930555,3.65644,2734.9,2734.8,0.06836239]
[1739811930757,3.65644,2734.9,2734.6,0.447577]
[1739811930954,3.65644,2734.9,2734.8,0.06836239]
[1739811931161,3.65657,2734.8,2734.7,0.06856161]
[1739811931486,3.65671,2734.7,2734.4,3.8189]
[1739811931636,3.65687,2734.6,2734.4,3.8189]
[1739811931827,3.65687,2734.6,2734.2,0.11175482]
[1739811932026,3.65698,2734.5,2734.2,0.11175482]
[1739811932223,3.65724,2734.3,2734.2,0.11175482]
[1739811932533,4.022964,2734.3,2734.2,0.11175482]
[1739811932740,4.022964,2734.3,2733.6,0.7542]
[1739811932741,3.65787,2733.9,2733.6,0.7542]
[1739811932925,3.65758,2734.1,2733.6,0.7542]
[1739811933283,3.6571,2734.4,2733.7,0.10917749]
[1739811933421,5.32,2734.5,2733.7,0.10917749]
[1739811933422,3.65791,2733.8,2733.7,0.10917749]
[1739811933775,3.65807,2733.7,2733.2,4.44939]
[1739811933973,3.65807,2733.7,2733.3,0.444939]
[1739811934522,3.70358731,2733.9,2732.8,0.7907]
[1739811934523,0.04572731,2733.9,2732.8,0.7907]
[1739811934760,0.7954,2734.1,2732.9,3.65902]
[1739811934761,3.65847,2733.4,2732.9,3.65902]
[1739811935134,3.65799,2733.8,2733.1,3.65877]
[1739811935332,3.65805,2733.7,2733.2,3.0]
[1739811935660,3.65817,2733.6,2732.8,0.7907]
[1739811935846,3.65845,2733.4,2732.9,3.659]
[1739811936046,7.31647,2733.6,2732.9,7.31802]
[1739811936264,3.65832,2733.5,2732.9,3.659]
[1739811936563,3.65852,2733.4,2732.9,3.659]
[1739811936745,3.65817,2733.6,2732.9,4.4699]
[1739811937149,0.18636223,2735.2,2732.9,4.4699]
[1739811937150,0.7954,2735.1,2734.1,3.65751]
[1739811937353,3.6567,2734.8,2734.0,0.7907]
[1739811937521,3.65692,2734.6,2734.0,4.44825]
[1739811937940,3.65692,2734.6,2734.0,0.7907]
[1739811937941,3.65704,2734.5,2734.0,0.7907]
[1739811938439,3.65712,2734.4,2734.0,0.7907]
[1739811938638,0.04571598,2734.3,2733.6,0.7907]
[1739811938855,3.65759,2734.1,2733.6,0.7907]
[1739811939053,3.65732,2734.3,2733.6,0.7907]
[1739811939239,4.7443839,2734.7,2733.6,0.7907]
[1739811939240,3.65695,2734.6,2734.1,3.65743]
[1739811939632,4.45205,2734.8,2734.1,3.65743]
[1739811939633,3.65677,2734.7,2734.1,3.65743]
[1739811939842,4.45205,2734.8,2733.6,3.7907]
[1739811939843,0.04571664,2734.6,2733.6,3.7907]
[1739811940163,3.65731,2734.3,2733.8,3.0]
[1739811940363,0.04507425,2734.3,2733.7,0.85350839]
[1739811940666,3.6573,2734.3,2733.6,0.7907]
[1739811940864,3.65738,2734.2,2733.7,3.65797]
[1739811941068,3.65738,2734.2,2733.6,0.7907]
[1739811941069,3.65738,2734.2,2733.6,7.44877]
[1739811941233,3.6573,2734.3,2733.7,3.65801]
[1739811941428,0.59572315,2734.7,2733.6,4.901406]
[1739811941635,3.65771,2734.0,2733.6,0.7907]
[1739811941834,3.65782,2733.9,2733.4,3.0]
[1739811942037,3.65794,2733.8,2733.3,4.46279]
[1739811942668,3.65758,2734.1,2733.3,0.8043]
[1739811942866,3.65731,2734.3,2733.7,3.65796]
[1739811943271,0.7839,2734.5,2733.7,0.365796]
[1739811943568,0.7839,2734.5,2733.8,3.65787]
[1739811943569,3.65732,2734.3,2733.8,3.65787]
[1739811943784,3.65713,2734.4,2733.9,3.65774]
[1739811944291,3.65713,2734.4,2733.7,3.0]
[1739811944457,3.65739,2734.2,2733.7,6.65794]
[1739811944792,0.7839,2734.5,2733.3,0.8043]
[1739811945091,0.7839,2734.5,2734.0,3.65762]
[1739811945270,4.44099,2734.5,2733.8,3.65787]
[1739811945477,3.65718,2734.4,2733.6,3.65809]
[1739811945646,3.65718,2734.4,2733.4,3.58596839]
[1739811945851,3.65664,2734.8,2734.2,3.6573]
[1739811946051,4.02700421,2734.7,2734.2,3.6573]
[1739811946271,3.65677,2734.7,2734.2,3.6573]
[1739811946600,3.65711,2734.4,2733.9,3.0]
[1739811946779,3.65757,2734.1,2733.6,3.6581]
[1739811947302,3.65733,2734.3,2733.6,3.6581]
[1739811947448,3.65733,2734.3,2733.7,3.74554]
[1739811947799,3.65755,2734.1,2733.7,0.74554]
[1739811948004,3.6576,2734.1,2733.7,0.74554]
[1739811948147,3.65734,2734.3,2733.8,0.11045035]
[1739811948502,3.65744,2734.2,2733.8,0.11045035]
[1739811948667,3.65734,2734.3,2733.8,0.11045035]
[1739811949697,3.65737,2734.2,2733.8,0.11045035]
[1739811949909,3.65752,2734.1,2733.8,0.11045035]
[1739811950051,3.65699,2734.5,2734.0,3.65762]
[1739811950254,4.4172,2734.8,2734.3,3.65717]
[1739811950487,4.4172,2734.8,2734.4,0.10983618]
[1739811950796,3.65677,2734.7,2734.4,0.10983618]
[1739811950963,3.65677,2734.7,2734.2,3.65736]
[1739811951301,3.65677,2734.7,2734.2,4.468116]
[1739811951449,3.6569,2734.6,2734.3,0.10993852]
[1739811951786,1.3106,2734.8,2733.8,0.7927]
[1739811952093,7.31383,2734.6,2734.1,3.65749]
[1739811952254,7.3138,2734.6,2734.1,3.65749]
[1739811952452,4.41721,2734.8,2734.2,0.10991038]
[1739811952666,3.65671,2734.7,2734.2,3.6573]
[1739811952953,3.6571,2734.4,2734.3,0.10979871]
[1739811953353,3.65758,2734.1,2733.6,6.65808]
[1739811953886,0.7867,2734.3,2733.8,3.6579]
[1739811954185,3.65726,2734.3,2733.8,3.6579]
[1739811954394,6.0876,2734.6,2733.9,0.11022369]
[1739811954566,3.65725,2734.3,2733.9,0.11022369]
[1739811954884,3.65725,2734.3,2733.8,3.6579]
[1739811955086,7.31412,2734.5,2734.0,0.11015549]
[1739811955290,3.65722,2734.4,2733.9,3.76789786]
[1739811955485,7.1977722,2734.6,2734.1,0.11005312]
[1739811955786,3.65751,2734.1,2734.0,0.11014617]
[1739811956091,3.65745,2734.2,2733.6,3.0]
[1739811956287,3.65745,2734.2,2733.8,3.65787]
[1739811956479,3.65732,2734.3,2733.8,3.65787]
[1739811956677,3.65738,2734.2,2733.6,6.6581]
[1739811956867,3.65738,2734.2,2733.7,0.74508]
[1739811957187,3.6573,2734.3,2733.8,3.6579]
[1739811957493,3.65718,2734.4,2733.9,3.6577]
[1739811957693,3.65725,2734.3,2733.9,3.6577]
[1739811957986,3.65718,2734.4,2733.8,3.65791]
[1739811958292,3.65718,2734.4,2733.9,3.6577]
[1739811958452,7.31438,2734.4,2733.9,3.6577]
[1739811958648,3.65721,2734.4,2733.8,0.740299]
[1739811958860,3.65719,2734.4,2733.9,3.65775]
[1739811959198,3.65719,2734.4,2733.9,7.31544]
[1739811959498,0.1008,2734.3,2733.9,7.3154]
[1739811959655,0.1008,2734.3,2733.9,0.8088]
[1739811960015,0.1008,2734.3,2734.0,3.65758]
[1739811960298,0.1008,2734.3,2734.2,3.65737]
[1739811960686,0.1008,2734.3,2734.1,3.65748]
[1739811960888,0.1008,2734.3,2734.2,3.65737]
[1739811961084,0.1008,2734.3,2733.9,4.46657]
[1739811961290,0.1008,2734.3,2734.0,3.0]
[1739811961485,0.1008,2734.3,2734.0,6.65753]
[1739811961678,0.1008,2734.3,2734.1,3.65749]
[1739811962000,0.1008,2734.3,2734.2,3.65737]
[1739811962526,0.1008,2734.3,2734.1,1.112399]
[1739811962802,3.75805,2734.3,2733.9,3.8088]
[1739811962971,3.75805,2734.3,2733.9,0.8088]
[1739811963173,0.1008,2734.3,2733.9,0.8088]
[1739811963379,0.1008,2734.3,2734.2,3.65737]
[1739811963591,0.1008,2734.3,2734.1,3.65745]
[1739811963789,0.1008,2734.3,2734.2,0.1098762]
[1739811964106,0.1008,2734.3,2733.9,0.8088]
[1739811964399,0.1008,2734.3,2734.2,0.1098762]
[1739811964607,0.1008,2734.3,2734.1,3.6575]
[1739811964805,0.1008,2734.3,2734.2,0.1098762]
[1739811965017,0.1008,2734.3,2734.2,3.7672462]
[1739811965205,5.32,2735.2,2734.3,3.0]
[1739811965409,5.32,2735.3,2735.2,3.65603]
[1739811965575,5.32,2735.3,2735.1,3.65617]
[1739811965773,5.32,2735.3,2735.2,0.10870706]
[1739811965774,8.9759,2735.3,2735.2,0.10870706]
[1739811966110,5.32,2735.3,2735.2,3.65603]
[1739811966344,5.32,2735.3,2735.1,7.31217]
[1739811966563,5.32,2735.3,2735.2,0.7609]
[1739811966764,5.32,2735.3,2735.2,0.10870706]
[1739811967245,3.65579,2735.4,2735.2,0.10858287]
[1739811967448,3.65559,2735.6,2735.0,3.6563]
[1739811967633,3.65564,2735.5,2735.1,0.10868515]
[1739811967835,3.65559,2735.6,2735.1,0.10868515]
[1739811968044,3.65531,2735.8,2735.1,0.10868515]
[1739811968237,3.65545,2735.7,2735.1,3.65606]
[1739811968550,0.8,2736.0,2735.2,0.10858287]
[1739811968752,0.8,2736.0,2735.5,3.65563]
[1739811969048,3.65511,2735.9,2735.6,0.10817381]
[1739811969250,4.45506,2736.0,2735.5,3.65563]
[1739811969454,3.65524,2735.8,2735.6,0.10817381]
[1739811969627,3.65524,2735.8,2735.3,4.44391]
[1739811969827,3.65524,2735.8,2735.4,0.10837833]
[1739811970399,0.73635986,2736.1,2735.5,3.65556]
[1739811970693,0.73635986,2736.1,2735.7,3.65536]
[1739811970897,9.75642,2736.4,2735.7,3.65536]
[1739811971082,3.6547,2736.2,2735.8,0.10780483]
[1739811971286,3.6547,2736.2,2735.7,3.65536]
[1739811971466,3.6547,2736.2,2735.9,0.1077026]
[1739811971670,3.6547,2736.2,2735.7,3.65528]
[1739811971894,3.6547,2736.2,2735.8,0.10780483]
[1739811972058,10.732062,2736.4,2735.8,0.10780483]
[1739811972059,5.32,2736.4,2736.0,3.65496]
[1739811972258,8.97445,2736.4,2736.1,0.10701387]
[1739811972512,3.6547,2736.2,2735.7,3.0]
[1739811972714,3.6547,2736.2,2735.7,6.65535]
[1739811972860,9.69349481,2736.4,2735.8,3.65516]
[1739811972861,13.34800481,2736.4,2735.8,3.65516]
[1739811973055,6.03897481,2736.4,2735.7,4.108826]
[1739811973263,3.65478,2736.2,2735.7,4.108826]
[1739811973827,3.65468,2736.3,2735.8,3.65522]
[1739811973957,3.65468,2736.3,2735.7,4.108826]
[1739811974155,3.65511,2735.9,2735.6,0.7775]
[1739811974365,3.65493,2736.1,2735.4,4.46247]
[1739811974567,3.65511,2735.9,2735.2,3.6559]
[1739811974797,0.55,2736.1,2735.1,0.8068]
[1739811975002,3.6556,2735.6,2735.1,4.46296]
[1739811975299,5.32,2735.9,2735.1,0.811917]
[1739811975495,3.65646,2734.9,2734.3,0.8187]
[1739811975796,3.6573,2734.3,2733.6,0.8187]
[1739811975996,3.6572,2734.4,2733.7,3.65801]
[1739811976195,3.65751,2734.1,2733.7,0.813486]
[1739811976397,3.65772,2734.0,2733.6,0.8187]
[1739811976815,3.65759,2734.1,2733.3,0.8187]